bitfinex/quotes_ETHUSD_20260131
["timestamp","ask_amount","ask_price","bid_price","bid_amount"]
[1769870946483,0.98669929,2533.7,2531.7,28.48533355]
[1769870946691,0.98669929,2533.7,2531.8,0.827]
[1769870946848,0.57604965,2533.6,2531.9,2.93123336]
[1769870947050,0.1024,2533.4,2531.9,2.93123336]
[1769870947250,0.1024,2533.4,2531.7,13.98533355]
[1769870947251,0.1024,2533.4,2531.7,14.5]
[1769870947472,0.1024,2533.2,2531.3,0.827]
[1769870947675,0.1024,2533.2,2531.3,1.81463034]
[1769870947840,0.1024,2533.2,2531.6,0.98751284]
[1769870948039,0.827,2533.1,2531.3,0.827]
[1769870948372,0.34791036,2533.4,2531.5,0.98755252]
[1769870948574,0.827,2533.3,2531.9,0.98739718]
[1769870948870,0.9294,2533.4,2531.6,0.98751523]
[1769870949045,0.98689404,2533.2,2531.5,14.64818492]
[1769870949246,0.98689404,2533.2,2531.5,14.63624486]
[1769870949872,0.98689404,2533.2,2531.4,15.48759475]
[1769870950050,0.3359703,2533.1,2531.0,13.64978808]
[1769870950263,4.5159703,2532.9,2531.1,1.36497881]
[1769870950464,4.52791036,2532.9,2531.0,0.0011]
[1769870950808,0.2335703,2532.5,2531.0,0.0011]
[1769870951083,0.1024,2532.1,2531.0,0.0011]
[1769870951254,0.62963892,2532.1,2530.4,14.47678808]
[1769870951455,0.2335703,2532.0,2530.4,0.0011]
[1769870951651,0.01194006,2532.0,2530.4,0.0011]
[1769870951974,0.2335703,2531.8,2530.4,0.0011]
[1769870952178,0.24551036,2531.8,2530.4,0.0011]
[1769870952581,0.1024,2531.5,2530.4,0.0011]
[1769870952883,0.1024,2531.3,2530.4,0.0011]
[1769870953086,1.81567383,2531.2,2530.4,0.0011]
[1769870953315,0.58687691,2531.1,2530.1,0.0011]
[1769870954691,0.98767383,2531.2,2530.1,0.0011]
[1769870955594,0.1024,2531.1,2530.1,0.0011]
[1769870956160,0.1024,2531.1,2529.4,14.5]
[1769870956556,0.98767383,2531.2,2529.7,14.63690938]
[1769870956755,0.98767383,2531.2,2529.8,0.98821009]
[1769870956985,0.98767383,2531.2,2529.8,14.63689817]
[1769870957292,4.77796929,2531.7,2530.0,14.63683037]
[1769870957476,3.94996929,2531.7,2530.0,13.64868808]
[1769870957788,0.828,2531.6,2530.0,13.64868808]
[1769870958298,0.828,2531.6,2529.9,1.85897798]
[1769870958299,0.1024,2531.5,2530.3,0.0011]
[1769870958471,0.828,2531.4,2530.3,0.0011]
[1769870958671,0.828,2531.3,2530.3,0.0011]
[1769870958888,0.11434006,2531.2,2530.3,0.0011]
[1769870959188,0.98771285,2531.1,2530.3,0.0011]
[1769870959362,0.828,2531.0,2530.3,0.0011]
[1769870960185,0.83994006,2531.0,2529.1,0.0011]
[1769870960391,0.01194006,2530.6,2529.1,0.0011]
[1769870960696,0.01194006,2530.4,2529.1,0.0011]
[1769870961066,0.98810323,2530.1,2529.1,0.0011]
[1769870961398,0.49524562,2530.0,2529.1,0.0011]
[1769870961597,0.828,2529.9,2529.1,0.0011]
[1769870961974,0.11434006,2529.8,2527.8,14.90053684]
[1769870962174,0.828,2529.7,2527.8,14.90055361]
[1769870962386,0.01194006,2529.6,2527.9,1.49005536]
[1769870962687,0.1024,2529.4,2527.5,0.98909355]
[1769870962886,0.1024,2529.4,2527.6,0.98908012]
[1769870963084,0.98841576,2529.3,2527.7,0.98903884]
[1769870963409,0.98841576,2529.3,2527.8,15.11246077]
[1769870963564,0.98841576,2529.3,2527.8,1.46377269]
[1769870963904,0.98841576,2529.3,2527.6,0.98907462]
[1769870964201,0.98841576,2529.3,2527.6,14.6377627]
[1769870964598,0.828,2529.2,2527.6,14.6377627]
[1769870965172,0.98849393,2529.1,2527.6,14.63776293]
[1769870965911,0.98847874,2529.2,2527.6,14.63776293]
[1769870966075,3.95314996,2529.7,2528.0,13.64868808]
[1769870966275,3.95287831,2529.9,2528.1,0.01194006]
[1769870966481,0.98798608,2530.4,2528.6,13.64868808]
[1769870966663,1.87716233,2530.4,2528.8,13.64868808]
[1769870967290,0.98798608,2530.4,2528.9,14.63726018]
[1769870969375,0.98798608,2530.4,2528.9,15.46526018]
[1769870970283,0.001,2530.2,2528.9,15.46526018]
[1769870970702,0.001,2530.2,2528.9,14.47668808]
[1769870970873,0.001,2530.2,2529.0,15.19521673]
[1769870971069,0.98798608,2530.4,2529.0,1.54652865]
[1769870971302,0.98798608,2530.4,2529.1,13.64868808]
[1769870971481,3.95143846,2530.8,2529.2,14.63714292]
[1769870972288,0.9877909,2530.9,2529.5,13.64868808]
[1769870972496,0.1024,2531.4,2529.4,0.01194006]
[1769870972497,0.98747876,2531.7,2529.7,13.64868808]
[1769870972678,0.828,2531.6,2529.7,13.64868808]
[1769870972876,0.98747876,2531.7,2529.6,0.83994006]
[1769870972877,0.98747876,2531.7,2529.9,13.64868808]
[1769870973206,1.81547876,2531.7,2529.9,13.64868808]
[1769870973510,0.98747876,2531.7,2530.1,13.64868808]
[1769870973833,0.98747876,2531.7,2529.6,14.47668808]
[1769870973834,0.01194006,2531.4,2529.6,14.47668808]
[1769870974068,0.01194006,2531.2,2529.1,13.64868808]
[1769870974180,0.01194006,2530.8,2529.1,13.64868808]
[1769870974378,0.01194006,2530.8,2528.9,0.828]
[1769870974379,0.01194006,2530.5,2528.9,0.828]
[1769870974875,0.01194006,2530.3,2528.6,0.98868877]
[1769870975190,0.01194006,2530.3,2528.7,1.85922218]
[1769870975379,0.828,2530.2,2528.7,1.85922218]
[1769870975577,0.98810323,2530.1,2528.7,1.85922218]
[1769870975805,4.18,2530.0,2528.7,1.85922218]
[1769870976114,0.77180688,2530.0,2528.8,0.28478861]
[1769870976729,4.95180688,2530.0,2528.1,1.81686306]
[1769870976875,4.95180688,2530.0,2528.1,0.828]
[1769870977077,0.1024,2529.9,2528.1,0.828]
[1769870977273,4.18,2529.8,2528.1,0.828]
[1769870977519,4.18,2529.6,2528.1,0.828]
[1769870977727,0.1024,2529.5,2527.9,13.64868808]
[1769870977885,4.18,2529.6,2528.0,0.98890199]
[1769870978092,0.51801995,2529.5,2528.0,1.36486881]
[1769870978287,0.98825947,2529.7,2528.1,14.24392387]
[1769870978497,0.98825947,2529.7,2528.3,13.25504142]
[1769870979515,3.95245233,2530.1,2528.5,13.25504142]
[1769870980917,8.13245233,2530.1,2528.5,13.25504142]
[1769870981122,0.91205165,2530.0,2528.6,1.4243809]
[1769870981638,0.98818135,2529.9,2528.6,14.91936246]
[1769870981841,0.829,2529.8,2528.6,1.4243809]
[1769870982042,4.18,2529.7,2528.7,0.0011]
[1769870983334,4.18,2529.7,2528.5,0.0011]
[1769870983500,0.1024,2529.5,2528.5,0.0011]
[1769870983707,5.20598328,2529.5,2528.5,0.0011]
[1769870983940,0.01194006,2529.4,2527.5,13.49498156]
[1769870984503,13.44809729,2528.4,2526.2,0.0011]
[1769870984807,13.44809729,2528.4,2524.9,17.45657782]
[1769870984808,4.18,2527.3,2525.1,13.49498156]
[1769870985034,4.18,2527.1,2525.2,15.49941196]
[1769870985239,4.18,2526.9,2525.3,0.98997625]
[1769870985506,4.18,2526.7,2525.2,15.49941196]
[1769870985707,0.51693937,2526.6,2525.0,21.03439586]
[1769870985936,0.98939369,2526.8,2525.0,21.03438361]
[1769870986144,0.98939369,2526.8,2525.0,20.04430396]
[1769870986909,0.1024,2526.7,2525.0,6.5493224]
[1769870987124,0.98939369,2526.8,2525.0,6.5493224]
[1769870987125,0.1024,2526.5,2525.0,6.5493224]
[1769870987325,0.829,2526.4,2525.0,6.5493224]
[1769870987640,0.829,2526.3,2525.0,6.5493224]
[1769870987873,0.829,2526.3,2525.0,7.20436464]
[1769870988134,0.829,2526.3,2525.0,6.5493224]
[1769870989006,0.829,2526.3,2525.1,13.49498156]
[1769870989233,0.98955034,2526.4,2525.1,13.49498156]
[1769870989753,3.95820139,2526.5,2525.0,6.5493224]
[1769870989954,3.95820139,2526.6,2525.0,20.04430396]
[1769870990164,4.93168495,2526.6,2525.1,2.0045404]
[1769870990369,3.95820139,2526.7,2525.1,16.48957774]
[1769870990540,3.95820139,2526.7,2525.1,15.49952196]
[1769870991238,3.95820139,2526.7,2525.1,16.4895627]
[1769870991433,0.829,2526.6,2525.1,16.4895627]
[1769870991690,4.78665755,2526.9,2525.3,14.48496204]
[1769870991871,3.95765755,2526.9,2525.3,14.48496204]
[1769870992047,3.95765755,2526.9,2525.5,13.49498156]
[1769870992386,0.98935454,2526.9,2525.5,14.32398156]
[1769870992542,0.98935454,2526.9,2525.5,13.49498156]
[1769870993294,13.44809729,2526.7,2524.9,0.0011]
[1769870993446,0.1024,2526.5,2525.0,6.4993224]
[1769870993645,0.1024,2526.1,2525.0,6.4993224]
[1769870993863,0.829,2526.0,2525.0,6.4993224]
[1769870994067,0.829,2526.0,2524.9,0.0011]
[1769870994467,0.829,2526.0,2524.6,1e-08]
[1769870994685,0.1024,2525.9,2523.7,14.48556842]
[1769870994974,0.829,2525.8,2524.3,13.49498156]
[1769870995384,0.98962869,2526.2,2524.3,13.49498156]
[1769870995567,0.829,2525.7,2524.3,14.94352048]
[1769870996079,0.829,2525.7,2523.8,2.5747382]
[1769870996372,0.829,2525.7,2523.7,13.49498156]
[1769870996577,13.44809729,2525.5,2523.1,13.49498156]
[1769870996781,0.5958362,2525.6,2523.6,0.99062385]
[1769870996960,0.829,2525.4,2523.5,0.99067431]
[1769870997162,0.829,2525.4,2523.6,1.44856559]
[1769870997677,0.1024,2525.3,2523.6,1.44856559]
[1769870997880,0.99002059,2525.2,2523.6,1.44856559]
[1769870998489,0.83,2525.1,2523.6,1.44856559]
[1769871000191,0.990099,2525.0,2523.6,1.44856559]
[1769871000397,0.990099,2525.0,2523.7,13.49498156]
[1769871000683,0.990099,2525.0,2523.6,1.44856559]
[1769871000892,0.990099,2525.0,2523.5,0.99066454]
[1769871001097,3.96039603,2525.4,2523.3,3.9630253]
[1769871001098,0.98970704,2526.0,2523.6,14.47687946]
[1769871001259,0.98970704,2526.0,2524.3,13.49498156]
[1769871001460,0.98968754,2526.1,2524.3,14.32498156]
[1769871001679,0.98968754,2526.1,2524.6,13.49498156]
[1769871001878,0.98955034,2526.4,2524.6,13.49498156]
[1769871002083,0.98955034,2526.4,2524.8,13.49498156]
[1769871002281,0.98955034,2526.4,2525.0,13.49498156]
[1769871002880,0.98955034,2526.4,2524.9,1.44971383]
[1769871003081,0.98955034,2526.4,2524.4,13.49498156]
[1769871003395,0.98955034,2526.4,2524.6,14.48522173]
[1769871003563,3.95685859,2527.3,2524.6,14.48522173]
[1769871003564,3.95689155,2527.3,2525.7,13.49498156]
[1769871003891,3.95664495,2527.4,2526.0,13.49498156]
[1769871004069,3.95664495,2527.4,2525.9,0.98974622]
[1769871004288,0.28615051,2527.5,2526.2,13.49498156]
[1769871004592,1.27529426,2527.5,2526.2,13.49498156]
[1769871005214,1.27529426,2527.5,2526.2,13.30895911]
[1769871005505,0.28615051,2527.5,2526.3,13.50692162]
[1769871005676,0.98901668,2527.8,2526.5,13.50692162]
[1769871005872,0.98861119,2528.8,2526.8,13.50692162]
[1769871006204,3.95310146,2529.7,2527.1,13.49498156]
[1769871006205,0.83,2529.3,2527.1,13.49498156]
[1769871006406,2.286341,2529.2,2527.2,1.35069216]
[1769871007104,0.83,2529.3,2527.2,1.35069216]
[1769871007306,0.1024,2528.9,2526.5,13.70793267]
[1769871007507,13.25936675,2528.7,2526.2,0.98960091]
[1769871007689,0.1024,2528.6,2526.6,1.81946427]
[1769871008406,0.98872849,2528.5,2526.6,15.52739694]
[1769871008577,4.65807525,2528.4,2526.7,1.94854261]
[1769871008786,0.83,2528.3,2526.6,1.81946183]
[1769871008989,0.83,2528.3,2526.6,15.5273945]
[1769871009202,0.50460425,2528.4,2526.6,15.5273945]
[1769871009722,0.50460425,2528.4,2526.8,13.70793267]
[1769871009878,0.98872849,2528.5,2527.0,13.70793267]
[1769871010080,0.98872849,2528.5,2527.2,13.70793267]
[1769871010724,0.98849393,2529.1,2526.6,0.83]
[1769871011015,0.98849393,2529.1,2526.7,0.98942316]
[1769871011016,0.1024,2528.9,2526.7,0.98942316]
[1769871011214,0.1024,2528.7,2526.6,0.83]
[1769871011415,2.418065,2528.6,2526.6,0.83]
[1769871011618,15.67743175,2528.6,2526.6,0.83]
[1769871011781,0.1024,2528.7,2526.6,0.83]
[1769871011986,0.1024,2528.7,2526.6,1.81946591]
[1769871012489,0.1024,2529.0,2526.8,0.98939213]
[1769871012817,0.9885721,2528.9,2526.7,14.70930558]
[1769871013014,2.2554,2528.8,2526.7,13.70793267]
[1769871013308,1.8185721,2528.9,2526.9,13.70793267]
[1769871014521,2.04612,2528.8,2526.6,1.81946228]
[1769871014735,1.3751195,2528.7,2526.6,1.81946228]
[1769871015423,1.3751195,2528.7,2526.6,15.52739495]
[1769871016813,1.3751195,2528.7,2526.6,14.53793267]
[1769871017020,2.73157,2528.6,2526.6,15.52740375]
[1769871017196,13.25936675,2528.6,2526.6,1.81946474]
[1769871017402,1.46344863,2528.5,2526.6,15.52739741]
[1769871017598,1.3751195,2528.7,2527.1,0.0011]
[1769871018726,1.3751195,2528.7,2527.1,13.70903267]
[1769871019245,1.3751195,2528.7,2527.1,0.0011]
[1769871019427,2.482552,2528.6,2527.1,0.0011]
[1769871020020,13.25936675,2528.2,2526.9,0.0011]
[1769871020252,5.806487,2528.1,2525.5,0.829]
[1769871020416,0.1024,2527.9,2525.8,0.99087957]
[1769871020615,4.175,2527.8,2525.8,14.69881224]
[1769871020844,4.175,2527.6,2525.8,14.69881224]
[1769871021032,0.829,2527.5,2525.8,14.69881224]
[1769871021220,4.175,2527.5,2525.8,14.69881224]
[1769871021951,5.004,2527.4,2525.8,0.0011]
[1769871022161,0.5004,2527.3,2525.8,0.0011]
[1769871022821,0.9892371,2527.2,2525.8,0.0011]
[1769871023349,5.1642371,2527.2,2525.8,0.0011]
[1769871023554,6.367461,2527.1,2525.8,0.0011]
[1769871023717,4.175,2527.1,2525.8,0.0011]
[1769871023924,0.51642371,2527.0,2525.8,0.0011]
[1769871024449,5.1642371,2527.2,2525.8,0.0011]
[1769871024628,0.829,2527.1,2525.8,0.0011]
[1769871024828,0.98931539,2527.0,2525.8,0.0011]
[1769871025135,4.175,2526.8,2525.8,0.0011]
[1769871025342,5.004,2526.8,2525.8,0.0011]
[1769871025524,0.5004,2526.7,2525.8,0.0011]
[1769871025937,0.829,2526.8,2525.8,0.0011]
[1769871026283,0.829,2526.8,2524.9,3.9605502]
[1769871026284,13.25936675,2526.2,2523.4,0.01194006]
[1769871026556,0.1024,2525.7,2523.5,13.61193267]
[1769871026726,4.175,2525.5,2523.5,13.61193267]
[1769871026921,4.175,2525.3,2523.5,13.61193267]
[1769871027150,0.01194006,2524.8,2523.5,13.61193267]
[1769871027359,0.01194006,2524.8,2523.0,13.70793267]
[1769871027529,0.01194006,2525.0,2523.0,14.69879136]
[1769871027731,0.83,2524.9,2523.0,14.69879136]
[1769871027933,5.005,2524.9,2523.1,1.46987914]
[1769871028152,5.005,2524.9,2523.0,13.70793267]
[1769871028361,0.83,2524.9,2523.1,0.99083874]
[1769871028721,0.83,2524.9,2523.0,14.69880422]
[1769871028957,0.99017743,2524.8,2523.0,13.70793267]
[1769871029123,0.99017743,2524.8,2523.1,1.37079327]
[1769871029330,0.99017743,2524.8,2522.6,0.0180972]
[1769871029331,0.01194006,2524.2,2522.6,0.0180972]
[1769871029564,0.83,2524.7,2523.0,14.69880249]
[1769871029565,0.01194006,2524.7,2523.0,14.69880249]
[1769871029861,0.83,2524.2,2523.0,14.69880058]
[1769871030172,0.99017743,2524.8,2523.1,15.17781273]
[1769871030173,0.49508872,2524.7,2523.1,15.17781273]
[1769871030465,1.00201067,2525.1,2523.5,13.70793267]
[1769871030761,1.49142829,2525.1,2523.6,15.07872594]
[1769871031059,1.49142829,2525.1,2523.6,13.70793267]
[1769871031259,5.66642829,2525.1,2523.1,1.46988006]
[1769871031459,0.1024,2525.0,2523.0,13.70793267]
[1769871031833,0.1024,2524.8,2523.0,13.70793267]
[1769871032039,0.1024,2525.0,2523.0,13.70793267]
[1769871032247,0.1024,2524.8,2523.0,13.70793267]
[1769871032446,0.7510273,2524.8,2523.0,14.70914684]
[1769871032662,0.83,2524.7,2523.0,14.70914684]
[1769871032864,0.6486273,2524.8,2523.2,13.70793267]
[1769871033169,0.99025588,2524.6,2523.2,13.70793267]
[1769871033366,0.99025588,2524.6,2523.2,14.69873677]
[1769871033551,0.99025588,2524.6,2523.2,13.70793267]
[1769871033753,0.99025588,2524.6,2523.2,14.69873008]
[1769871034279,0.99025588,2524.6,2523.2,14.69872263]
[1769871034448,0.99025588,2524.6,2523.4,13.70793267]
[1769871034770,0.99025588,2524.6,2523.0,1.00121417]
[1769871035076,0.99025588,2524.6,2523.0,1.99207048]
[1769871035371,3.96102352,2524.7,2523.0,1.00121417]
[1769871035555,3.96102352,2524.7,2523.0,1.99208413]
[1769871035749,0.57812402,2524.6,2522.9,0.83]
[1769871035943,13.25936675,2523.6,2521.1,0.99161049]
[1769871036193,1.33617667,2523.5,2521.4,13.70793267]
[1769871036345,1.21082727,2523.4,2522.2,13.70793267]
[1769871036551,0.83,2523.3,2522.2,13.70793267]
[1769871036778,0.83,2523.3,2521.6,13.70793267]
[1769871037076,0.01194006,2523.2,2521.0,17.95731446]
[1769871037276,0.99084459,2523.1,2521.1,14.98229668]
[1769871037477,1.82084459,2523.1,2521.1,13.99066605]
[1769871037676,0.83,2523.0,2521.1,13.99066605]
[1769871037985,0.99084459,2523.1,2521.1,13.99066605]
[1769871037986,0.83,2522.9,2521.1,13.99066605]
[1769871038145,0.99084459,2523.1,2520.9,13.99066605]
[1769871038146,0.4966163,2523.0,2520.9,13.99066605]
[1769871038343,0.83,2522.9,2520.9,14.98235159]
[1769871038545,0.34700903,2522.8,2520.9,13.99066605]
[1769871038791,0.1024,2522.7,2520.9,13.99066605]
[1769871038992,0.01194006,2522.2,2520.6,0.99179613]
[1769871039151,0.01194006,2522.2,2520.3,13.99066605]
[1769871039152,0.99127676,2522.0,2520.3,14.98258461]
[1769871039352,1.82127676,2522.0,2520.3,14.98258461]
[1769871039575,0.99122342,2522.2,2520.5,13.99066605]
[1769871039747,1.82122342,2522.2,2520.5,13.99066605]
[1769871040766,0.01194006,2522.0,2520.5,13.99066605]
[1769871041152,13.98738749,2521.9,2519.5,0.99222829]
[1769871041350,13.98738749,2521.9,2519.4,0.99229447]
[1769871041351,0.01194006,2521.0,2519.4,0.99229447]
[1769871041578,0.831,2520.9,2519.1,13.46123862]
[1769871041760,0.01194006,2521.0,2519.3,13.33958319]
[1769871041975,0.01194006,2521.0,2519.2,1.34612386]
[1769871041976,0.831,2520.9,2519.6,14.33179406]
[1769871042183,0.831,2520.9,2519.5,0.99225795]
[1769871042350,0.01194006,2521.6,2519.6,14.33179613]
[1769871042550,0.831,2521.5,2519.7,15.16966538]
[1769871043075,0.01194006,2521.6,2519.7,15.16966538]
[1769871043378,0.99131607,2522.0,2519.8,14.33172542]
[1769871043584,1.67782661,2521.9,2520.5,13.34068319]
[1769871043782,0.84682661,2521.9,2520.5,13.34068319]
[1769871044086,1.29543028,2522.1,2520.5,13.34068319]
[1769871044293,1.29543028,2522.1,2520.5,0.0011]
[1769871044700,1.29543028,2522.1,2520.5,13.34068319]
[1769871045199,1.29543028,2522.1,2520.7,13.33958319]
[1769871045375,1.29543028,2522.1,2520.9,13.33958319]
[1769871045895,0.30416723,2522.1,2520.9,13.33958319]
[1769871046198,0.99102938,2522.7,2520.9,13.31658319]
[1769871046403,0.99186948,2523.1,2521.1,13.35152325]
[1769871046605,0.001,2523.1,2521.3,13.35152325]
[1769871046901,0.99185119,2523.1,2521.3,13.33958319]
[1769871047401,0.99185119,2523.1,2521.5,13.33958319]
[1769871049178,1.82285119,2523.1,2521.5,13.33958319]
[1769871049382,0.99185119,2523.1,2521.7,13.33958319]
[1769871049578,0.001,2523.1,2521.8,14.77268491]
[1769871050208,0.001,2523.1,2521.8,1.43310172]
[1769871050506,0.001,2523.1,2521.6,14.3310172]
[1769871050507,0.831,2523.0,2521.6,14.3310172]
[1769871050701,0.001,2523.1,2521.6,14.3310172]
[1769871051106,0.001,2523.1,2521.6,14.34295726]
[1769871051712,0.99067082,2523.6,2522.0,13.35152325]
[1769871051924,0.99067082,2523.6,2522.2,13.33958319]
[1769871053038,13.76603515,2522.2,2520.6,0.01194006]
[1769871053176,12.89367142,2521.5,2519.3,3.96919901]
[1769871053376,0.99151265,2521.4,2519.2,13.35152325]
[1769871053614,1.32675633,2521.3,2519.4,13.33958319]
[1769871053797,0.01194006,2521.2,2519.3,1.33515232]
[1769871054008,0.01194006,2521.0,2518.9,0.99249672]
[1769871054701,0.831,2520.9,2518.9,0.99249672]
[1769871055089,0.49575633,2521.3,2519.2,13.33958319]
[1769871055324,0.49575633,2521.3,2519.4,13.33958319]
[1769871055519,0.9915913,2521.2,2519.5,0.99226036]
[1769871055680,0.9915913,2521.2,2519.6,1.8300885]
[1769871056017,0.9915913,2521.2,2519.6,15.16967169]
[1769871056848,0.9915913,2521.2,2519.7,14.5]
[1769871057177,0.9915913,2521.2,2519.8,13.33958319]
[1769871057382,1.4873738,2521.2,2519.9,2.78395832]
[1769871057618,1.4873738,2521.2,2519.9,0.99210286]
[1769871057824,1.4873738,2521.2,2519.8,13.33958319]
[1769871057989,1.4873738,2521.2,2519.7,14.5]
[1769871058329,1.4873738,2521.2,2519.7,0.99217797]
[1769871058618,1.4873738,2521.2,2519.6,15.49219151]
[1769871058840,0.54536076,2521.1,2519.0,3.96979683]
[1769871059133,0.55730082,2521.1,2519.5,0.99225989]
[1769871059280,0.55730082,2521.1,2519.5,0.99225251]
[1769871059481,0.99166997,2521.0,2519.4,3.9691943]
[1769871059718,3.96526428,2522.0,2519.9,13.33958319]
[1769871059906,0.831,2521.9,2519.9,13.33958319]
[1769871060216,0.84294006,2521.9,2519.9,13.33958319]
[1769871060381,0.01194006,2521.7,2519.5,1.32714941]
[1769871060582,0.01194006,2521.5,2519.5,0.831]
[1769871060911,0.01194006,2521.5,2519.4,14.33188294]
[1769871061418,0.831,2521.4,2519.4,14.33188294]
[1769871061594,0.99155197,2521.3,2519.6,14.33180417]
[1769871061795,1.56277632,2521.7,2519.8,13.33958319]
[1769871062012,1.56277632,2521.7,2519.7,0.84294006]
[1769871062013,3.96573605,2521.6,2520.0,13.33958319]
[1769871062320,3.96561753,2521.7,2520.0,13.33958319]
[1769871062618,3.96561753,2521.7,2520.1,14.5]
[1769871062802,0.49570122,2521.6,2520.2,2.78395832]
[1769871063435,0.49570122,2521.6,2520.2,16.12354151]
[1769871063638,3.96550729,2521.8,2520.3,14.33152859]
[1769871064435,3.96550729,2521.8,2520.2,3.7759153]
[1769871064641,3.96550729,2521.8,2519.2,17.32091015]
[1769871064642,0.1024,2521.7,2519.2,17.32091015]
[1769871064808,12.89367142,2521.5,2519.0,0.01194006]
[1769871065137,0.01194006,2521.6,2518.2,6.93727992]
[1769871065138,12.90561148,2521.1,2519.4,0.99229447]
[1769871065318,3.97744735,2521.8,2520.0,0.99203153]
[1769871065319,1.29056115,2521.0,2520.0,0.99203153]
[1769871065513,3.97744735,2521.8,2519.7,0.9921816]
[1769871065514,0.831,2521.2,2519.7,0.9921816]
[1769871065727,0.831,2521.5,2519.7,14.33176479]
[1769871065929,3.96550729,2521.8,2519.9,13.33958319]
[1769871066110,3.96463545,2522.5,2520.6,13.33958319]
[1769871066309,3.96463545,2522.5,2520.5,0.01194006]
[1769871066310,0.49557157,2522.4,2521.6,0.01194006]
[1769871066505,0.49557157,2522.4,2520.7,15.83515233]
[1769871066506,0.01194006,2521.8,2520.7,15.83515233]
[1769871066744,0.01194006,2521.6,2520.7,14.5]
[1769871066909,0.84294006,2522.0,2520.7,14.5]
[1769871067109,0.01194006,2522.0,2520.7,14.5]
[1769871067342,0.01194006,2522.0,2520.7,1.45]
[1769871067539,0.01194006,2522.0,2520.2,13.33958319]
[1769871067747,0.01194006,2521.7,2520.4,0.0011]
[1769871067942,0.01194006,2521.5,2520.4,0.0011]
[1769871068443,0.01194006,2521.6,2520.4,0.0011]
[1769871068635,0.84294006,2521.6,2520.4,0.0011]
[1769871068944,0.01194006,2521.6,2520.4,0.0011]
[1769871069244,0.01194006,2521.8,2520.4,0.0011]
[1769871069448,0.50998611,2521.8,2520.4,0.0011]
[1769871069612,0.99147332,2521.5,2520.4,0.0011]
[1769871069815,0.01194006,2521.4,2520.4,0.0011]
[1769871070056,0.01194006,2521.0,2520.4,0.0011]
[1769871070348,0.01194006,2521.0,2520.1,0.0011]
[1769871070349,0.84294006,2521.0,2520.1,0.0011]
[1769871070514,0.01194006,2521.2,2519.5,14.5]
[1769871070515,0.01194006,2520.9,2519.7,0.99215974]
[1769871071142,0.01194006,2520.9,2519.7,0.99217153]
[1769871071329,0.01194006,2521.2,2520.1,0.99200188]
[1769871071330,0.84294006,2521.2,2520.1,0.99200188]
[1769871071533,0.84294006,2521.2,2520.1,0.99200354]
[1769871071737,0.99163063,2521.1,2519.8,0.99214223]
[1769871071933,0.58010932,2521.0,2519.8,3.17609108]
[1769871072136,0.49804605,2521.8,2519.9,12.92188076]
[1769871072342,0.99096242,2522.8,2521.0,12.9099407]
[1769871072530,0.99096242,2522.8,2520.9,0.01194006]
[1769871072531,0.99096242,2522.8,2521.2,12.9099407]
[1769871072729,0.49547646,2522.7,2521.2,12.9099407]
[1769871073038,0.99084459,2523.1,2521.2,12.9099407]
[1769871073228,1.00278465,2523.1,2521.2,12.9099407]
[1769871073551,1.00278465,2523.1,2521.4,12.9099407]
[1769871073754,1.00278465,2523.1,2521.5,13.90141402]
[1769871073919,0.49661273,2523.0,2521.6,1.78673073]
[1769871074119,0.01194006,2522.9,2521.1,0.831]
[1769871074320,0.01194006,2522.5,2521.2,14.5]
[1769871074520,0.01194006,2522.2,2520.8,0.9917214]
[1769871074843,0.01194006,2522.2,2520.5,0.831]
[1769871074844,0.01194006,2522.2,2520.9,0.99170321]
[1769871075039,0.01194006,2522.2,2520.7,0.99176079]
[1769871075220,0.01194006,2522.5,2521.1,0.99161939]
[1769871075421,0.831,2522.4,2521.2,0.99155625]
[1769871075632,0.831,2522.4,2521.0,0.99166787]
[1769871076029,0.99115886,2522.3,2520.8,3.96695473]
[1769871076236,0.57867943,2522.2,2520.8,6.11138222]
[1769871076661,0.57867943,2522.2,2520.9,14.5]
[1769871076857,0.57867943,2522.2,2520.5,0.831]
[1769871077067,0.57867943,2522.2,2520.2,3.9678217]
[1769871077068,0.01194006,2521.7,2520.2,3.9678217]
[1769871077349,0.01194006,2521.7,2520.3,0.99192797]
[1769871077656,4.18694006,2522.1,2520.4,12.9099407]
[1769871077657,0.01194006,2522.1,2520.4,12.9099407]
[1769871077864,0.99115886,2522.3,2520.7,13.90172672]
[1769871078166,3.96407186,2522.7,2520.9,13.90165001]
[1769871078366,0.39640719,2522.6,2520.9,13.90165001]
[1769871079281,3.96384969,2523.0,2520.9,13.90165001]
[1769871079282,0.99080532,2523.2,2521.4,12.9099407]
[1769871079430,0.001,2523.4,2521.6,12.92188076]
[1769871079632,0.99172824,2523.4,2521.8,12.9099407]
[1769871079958,0.001,2523.4,2521.8,12.9099407]
[1769871080288,0.001,2523.4,2522.0,12.9099407]
[1769871080434,0.001,2523.4,2521.9,0.99131607]
[1769871080435,0.99056977,2523.8,2522.2,12.9099407]
[1769871080640,1.00240056,2524.1,2522.2,12.9099407]
[1769871080847,0.9904605,2524.1,2522.4,12.9099407]
[1769871081294,0.28865663,2524.4,2522.9,0.01194006]
[1769871081565,0.28865663,2524.4,2522.7,0.01194006]
[1769871081566,0.01194006,2524.5,2523.0,0.831]
[1769871081890,0.01194006,2524.3,2523.0,0.831]
[1769871082069,0.99049128,2524.0,2522.5,0.99108027]
[1769871082378,0.49643965,2523.9,2522.5,2.77761448]
[1769871082566,0.1024,2525.0,2522.5,2.77761448]
[1769871082567,3.95786926,2526.7,2525.3,1.77329343]
[1769871082868,3.95786926,2526.7,2525.0,12.9099407]
[1769871082869,0.9892371,2527.2,2525.0,12.9099407]
[1769871083269,2.211224,2527.1,2524.9,0.831]
[1769871083472,13.53741168,2527.0,2524.9,0.831]
[1769871083642,1.35374117,2526.9,2524.9,0.831]
[1769871084166,14.52664878,2527.2,2525.0,0.990099]
[1769871084538,15.81970806,2527.2,2525.0,1.00203906]
[1769871084770,14.52664878,2527.2,2525.0,1.00203906]
[1769871085181,0.001,2527.3,2525.5,0.01194006]
[1769871085474,0.001,2527.3,2525.6,0.01194006]
[1769871085692,0.001,2527.3,2525.4,1.30412814]
[1769871085888,0.001,2527.3,2525.6,0.01194006]
[1769871086051,0.001,2527.3,2525.9,0.98974622]
[1769871086252,0.001,2527.3,2525.9,1.82074622]
[1769871086452,0.001,2527.3,2526.0,0.59110718]
[1769871086646,0.001,2527.3,2525.9,1.82074622]
[1769871086647,0.001,2527.3,2525.9,0.831]